bitfinex/quotes_BTCUSD_20230831
["timestamp","ask_amount","ask_price","bid_price","bid_amount"]
[1693504871058,0.003,26356.0,26355.0,2.36957759]
[1693504871290,0.003,26356.0,26355.0,2.30351759]
[1693504872112,0.003,26356.0,26355.0,2.37449759]
[1693504872237,0.003,26356.0,26355.0,2.37467759]
[1693504872439,0.003,26356.0,26355.0,2.37389759]
[1693504872646,0.003,26356.0,26355.0,2.37365759]
[1693504872866,0.003,26356.0,26355.0,2.37149759]
[1693504873276,0.003,26356.0,26355.0,2.37509759]
[1693504873496,0.003,26356.0,26355.0,2.37623759]
[1693504873695,0.003,26356.0,26355.0,2.37329759]
[1693504873927,0.003,26356.0,26355.0,2.30351759]
[1693504874569,0.003,26356.0,26355.0,2.37473759]
[1693504874776,0.003,26356.0,26355.0,2.37581759]
[1693504874925,0.003,26356.0,26355.0,2.30351759]
[1693504875718,0.003,26356.0,26355.0,2.37359759]
[1693504875919,0.003,26356.0,26355.0,2.37743759]
[1693504876140,0.003,26356.0,26355.0,2.37761759]
[1693504876346,0.003,26356.0,26355.0,2.37743759]
[1693504876541,0.003,26356.0,26355.0,2.37737759]
[1693504876781,0.003,26356.0,26355.0,2.37749759]
[1693504877028,0.003,26356.0,26355.0,2.37845759]
[1693504877228,0.003,26356.0,26355.0,2.37893759]
[1693504877399,0.003,26356.0,26355.0,2.37887759]
[1693504877600,0.003,26356.0,26355.0,2.37851759]
[1693504877801,0.003,26356.0,26355.0,2.37821759]
[1693504878053,0.003,26356.0,26355.0,2.37149759]
[1693504878260,0.003,26356.0,26355.0,2.37281759]
[1693504878396,0.003,26356.0,26355.0,2.36981759]
[1693504878597,0.003,26356.0,26355.0,2.37245759]
[1693504878799,0.003,26356.0,26355.0,2.37821759]
[1693504879050,0.003,26356.0,26355.0,2.39741759]
[1693504879259,0.003,26356.0,26355.0,2.51823759]
[1693504879577,0.003,26356.0,26355.0,2.51391759]
[1693504879732,0.003,26356.0,26355.0,2.49847759]
[1693504879938,0.003,26356.0,26355.0,2.51469759]
[1693504880140,0.003,26356.0,26355.0,2.51619759]
[1693504880367,0.003,26356.0,26355.0,2.51433759]
[1693504880547,1.23370809,26361.0,26356.0,0.08]
[1693504880796,1.23370809,26361.0,26359.0,0.1153]
[1693504881016,1.23370809,26361.0,26360.0,1.138088]
[1693504881219,1.38199733,26361.0,26360.0,1.15705052]
[1693504881809,1.38199733,26361.0,26360.0,1.72609452]
[1693504882008,1.23670809,26361.0,26360.0,1.84139452]
[1693504882150,1.23370809,26361.0,26360.0,1.91231452]
[1693504882350,1.23370809,26361.0,26360.0,1.91207452]
[1693504882557,1.38498861,26361.0,26360.0,1.91171452]
[1693504882765,1.38498861,26361.0,26360.0,1.84139452]
[1693504883763,1.38198861,26361.0,26360.0,1.84139452]
[1693504883972,1.38498861,26361.0,26360.0,1.84339452]
[1693504884323,1.38198861,26361.0,26360.0,1.84339452]
[1693504884792,1.38198861,26361.0,26360.0,1.27535052]
[1693504886485,1.38198861,26361.0,26360.0,1.16005052]
[1693504886486,1.60755412,26361.0,26360.0,1.16005052]
[1693504886685,1.60755412,26361.0,26360.0,0.59100652]
[1693504888480,1.69821975,26361.0,26360.0,0.02196252]
[1693504888689,1.60755412,26361.0,26360.0,0.02196252]
[1693504889296,1.69821975,26361.0,26360.0,0.02196252]
[1693504889715,1.69821975,26361.0,26360.0,0.59100652]
[1693504890524,1.69821975,26361.0,26360.0,0.02196252]
[1693504891135,1.38198861,26361.0,26360.0,0.59100652]
[1693504892634,1.47265424,26361.0,26360.0,0.59100652]
[1693504893461,1.38198861,26361.0,26360.0,1.16005052]
[1693504893665,1.47265424,26361.0,26360.0,1.16005052]
[1693504894479,1.96683263,26361.0,26360.0,0.02196252]
[1693504894722,3.31188743,26361.0,26360.0,0.02196252]
[1693504894904,3.44162648,26361.0,26360.0,0.02196252]
[1693504895108,3.91577022,26361.0,26360.0,0.02196252]
[1693504895317,3.91577022,26361.0,26360.0,0.003]
[1693504895723,4.14164772,26361.0,26360.0,0.01807002]
[1693504895928,3.89919349,26361.0,26360.0,0.01807002]
[1693504896138,3.89919349,26361.0,26360.0,0.001]
[1693504896343,4.18173561,26361.0,26355.0,0.00098031]
[1693504896554,0.22703206,26357.0,26355.0,0.00098031]
[1693504896759,0.23909334,26356.0,26355.0,0.00098031]
[1693504896961,0.14828052,26356.0,26354.0,1.138322]
[1693504897166,0.23909334,26356.0,26354.0,1.138322]
[1693504897374,0.14828052,26355.0,26354.0,1.138322]
[1693504898188,0.14828052,26355.0,26354.0,1.175322]
[1693504898396,0.14828052,26355.0,26354.0,1.212322]
[1693504898606,0.14828052,26355.0,26354.0,0.074]
[1693504898607,2.69994229,26355.0,26354.0,0.074]
[1693504898820,2.4726575,26355.0,26354.0,0.037]
[1693504899026,2.4726575,26355.0,26354.0,0.074]
[1693504899444,2.4726575,26355.0,26354.0,0.037]
[1693504899856,2.4726575,26355.0,26354.0,0.074]
[1693504900062,2.4726575,26355.0,26354.0,0.037]
[1693504900270,2.4726575,26355.0,26350.0,0.00099547]
[1693504900271,2.4786575,26355.0,26350.0,0.00099547]
[1693504900484,0.09091225,26351.0,26350.0,0.00099547]
[1693504900688,0.22729023,26351.0,26350.0,0.00099547]
[1693504900890,0.22729023,26351.0,26348.0,1.138583]
[1693504901094,0.22729023,26351.0,26348.0,0.569289]
[1693504901722,0.09092186,26350.0,26348.0,0.569289]
[1693504901937,0.28836837,26351.0,26348.0,0.569289]
[1693504901938,0.24292186,26351.0,26349.0,0.36768085]
[1693504902150,0.152,26351.0,26350.0,1.273818]
[1693504902358,0.152,26351.0,26350.0,2.87217685]
[1693504902566,0.152,26351.0,26350.0,2.87181685]
[1693504902775,0.152,26351.0,26350.0,2.78001685]
[1693504902980,0.152,26351.0,26350.0,2.81801685]
[1693504903316,0.152,26351.0,26350.0,2.89271685]
[1693504903529,0.152,26351.0,26350.0,2.89667685]
[1693504903742,0.152,26351.0,26350.0,2.90045685]
[1693504904105,0.152,26351.0,26350.0,2.90141685]
[1693504904334,0.152,26351.0,26350.0,2.90117685]
[1693504904565,0.152,26351.0,26350.0,2.81801685]
[1693504905019,0.152,26351.0,26350.0,2.93467685]
[1693504905195,0.152,26351.0,26350.0,2.93485685]
[1693504905404,0.152,26351.0,26350.0,2.85601685]
[1693504905622,0.152,26351.0,26350.0,2.94109685]
[1693504905830,0.152,26351.0,26350.0,2.94085685]
[1693504906035,0.152,26351.0,26350.0,2.94133685]
[1693504906236,0.152,26351.0,26350.0,2.94403685]
[1693504906467,0.09092186,26354.0,26350.0,2.97019685]
[1693504906678,0.09092186,26354.0,26353.0,0.1153]
[1693504906914,0.31819287,26355.0,26353.0,2.77976085]
[1693504906915,0.1818245,26355.0,26353.0,2.77976085]
[1693504907105,0.1818245,26355.0,26353.0,2.73284085]
[1693504907106,0.09096381,26354.0,26353.0,2.73284085]
[1693504907380,0.09096381,26354.0,26353.0,2.86994085]
[1693504907582,0.22740952,26355.0,26353.0,2.87036085]
[1693504907793,0.22740952,26355.0,26354.0,0.1353]
[1693504908002,0.22740952,26355.0,26354.0,1.842819]
[1693504908736,0.37936452,26355.0,26354.0,1.842819]
[1693504908959,0.83420983,26355.0,26354.0,1.842819]
[1693504909517,0.74324602,26355.0,26354.0,1.855819]
[1693504910139,0.28840071,26355.0,26354.0,1.855819]
[1693504910336,0.28840071,26355.0,26354.0,1.869819]
[1693504910982,0.09096068,26356.0,26354.0,2.82553219]
[1693504911234,0.09096068,26358.0,26355.0,0.48298085]
[1693504911444,0.09096068,26358.0,26357.0,0.1153]
[1693504911639,0.22740639,26358.0,26357.0,2.21030485]
[1693504911847,0.31837333,26358.0,26357.0,2.21030485]
[1693504912060,0.13644571,26358.0,26357.0,2.21030485]
[1693504912268,0.13644571,26358.0,26357.0,2.27894485]
[1693504912667,0.31837333,26358.0,26357.0,2.31682485]
[1693504912874,0.31837333,26358.0,26357.0,2.31670485]
[1693504913074,0.31837333,26358.0,26357.0,2.31538485]
[1693504913279,0.31837333,26358.0,26357.0,2.31496485]
[1693504913477,0.31837333,26358.0,26357.0,2.35422485]
[1693504913677,0.31837333,26358.0,26357.0,2.35452485]
[1693504913932,0.31837333,26358.0,26357.0,2.35458485]
[1693504914137,0.31837333,26358.0,26357.0,2.35320485]
[1693504914138,0.13644571,26358.0,26357.0,2.35320485]
[1693504914334,0.13644571,26358.0,26357.0,2.35314485]
[1693504914555,0.31837333,26358.0,26357.0,2.35332485]
[1693504914751,0.31837333,26358.0,26357.0,2.35248485]
[1693504914927,0.31837333,26358.0,26357.0,2.35074485]
[1693504915155,0.31837333,26358.0,26357.0,2.28630485]
[1693504916678,0.18192762,26358.0,26357.0,2.28630485]
[1693504917232,0.45967462,26358.0,26357.0,1.898624]
[1693504918827,0.45967462,26358.0,26357.0,1.783324]
[1693504919054,0.45963378,26358.0,26357.0,1.783324]
[1693504919410,0.277747,26358.0,26357.0,1.783324]
[1693504920630,0.277747,26358.0,26357.0,1.214216]
[1693504926365,0.277747,26358.0,26357.0,1.23222068]
[1693504926782,0.42621901,26358.0,26357.0,1.23222068]
[1693504929307,0.42621901,26358.0,26357.0,1.80132868]
[1693504929504,0.09093657,26358.0,26357.0,2.56302953]
[1693504929710,0.31830366,26359.0,26357.0,2.59722953]
[1693504929711,0.09093657,26359.0,26357.0,2.59722953]
[1693504929880,0.09093657,26360.0,26358.0,0.50298085]
[1693504930080,0.09093657,26360.0,26359.0,2.39156]
[1693504930328,0.09093657,26360.0,26359.0,2.88160085]
[1693504930538,0.09093657,26360.0,26359.0,2.87746085]
[1693504930717,0.09093657,26360.0,26359.0,2.87794085]
[1693504930937,0.09093657,26360.0,26359.0,2.87044085]
[1693504931140,0.22734701,26360.0,26359.0,2.77924085]
[1693504931346,0.13641044,26360.0,26359.0,2.09487585]
[1693504931548,0.31830366,26360.0,26359.0,2.09487585]
[1693504931755,0.31830366,26360.0,26359.0,1.765195]
[1693504931949,0.31830366,26360.0,26359.0,1.745195]
[1693504932313,0.18189322,26360.0,26359.0,1.783195]
[1693504932727,0.31828166,26360.0,26359.0,1.783195]
[1693504933759,0.13638844,26360.0,26359.0,1.783195]
[1693504934231,1.07149809,26361.0,26360.0,0.18]
[1693504934472,0.09091104,26364.0,26363.0,0.08]
[1693504934684,0.0201,26365.0,26363.0,3.19066919]
[1693504934906,0.0201,26365.0,26364.0,0.36768085]
[1693504935114,0.0201,26365.0,26364.0,2.36743185]
[1693504935370,0.0202,26367.0,26366.0,0.5784]
[1693504935581,0.09091104,26371.0,26368.0,0.06]
[1693504935814,0.24747761,26372.0,26370.0,0.1153]
[1693504936053,0.24747761,26372.0,26371.0,1.62059285]
[1693504936054,0.11111104,26372.0,26371.0,1.62059285]
[1693504936253,0.2588865,26372.0,26371.0,2.77820485]
[1693504936495,0.2588865,26372.0,26371.0,2.84462485]
[1693504936739,0.2588865,26372.0,26371.0,2.20939885]
[1693504936740,0.16797546,26372.0,26371.0,2.20939885]
[1693504937148,0.16797546,26372.0,26371.0,2.23639885]
[1693504937789,0.0202,26372.0,26371.0,2.23639885]
[1693504938123,0.0202,26372.0,26371.0,2.26239885]
[1693504939333,0.0202,26372.0,26371.0,0.621806]
[1693504939538,0.0202,26372.0,26371.0,1.190612]
[1693504941192,0.0202,26372.0,26371.0,1.20759671]
[1693504941426,0.0202,26372.0,26371.0,0.63879071]
[1693504945544,0.32298508,26372.0,26371.0,0.06998471]
[1693504945749,1.03948959,26372.0,26371.0,0.06998471]
[1693504946582,0.16791951,26372.0,26371.0,0.06998471]
[1693504948126,0.44667007,26372.0,26371.0,0.06998471]
[1693504949223,0.16791951,26372.0,26371.0,0.06998471]
[1693504949445,0.0202,26372.0,26371.0,1.69057756]
[1693504949652,0.0202,26372.0,26371.0,2.35054356]
[1693504949859,0.0202,26372.0,26371.0,2.27928356]
[1693504950278,0.0202,26372.0,26371.0,1.71047756]
[1693504950514,0.0202,26372.0,26371.0,1.59527756]
[1693504951629,0.0202,26372.0,26371.0,2.16408356]
[1693504952033,0.0202,26372.0,26371.0,2.27928356]
[1693504952241,0.0202,26372.0,26371.0,2.34462356]
[1693504952444,0.0202,26372.0,26371.0,2.34810356]
[1693504952668,0.0202,26372.0,26371.0,2.36502356]
[1693504952871,0.0202,26372.0,26371.0,2.35938356]
[1693504953117,0.0202,26372.0,26371.0,2.34744356]
[1693504953319,0.0202,26372.0,26371.0,2.31666356]
[1693504953737,0.0202,26372.0,26371.0,2.29054356]
[1693504953939,0.0202,26372.0,26371.0,2.22628356]
[1693504954347,0.0202,26372.0,26371.0,2.29036356]
[1693504954552,0.0202,26372.0,26371.0,2.25228356]
[1693504954759,0.0202,26372.0,26371.0,2.22628356]
[1693504955022,0.0202,26372.0,26371.0,2.26328356]
[1693504955250,0.0202,26372.0,26371.0,1.72147756]
[1693504955661,0.0202,26372.0,26371.0,1.69447756]
[1693504955865,0.0202,26372.0,26371.0,1.73147756]
[1693504956066,1.05290675,26372.0,26371.0,0.09098471]
[1693504956271,0.0202,26372.0,26371.0,0.09098471]
[1693504956421,0.0202,26372.0,26371.0,0.65979071]
[1693504956637,0.0202,26372.0,26371.0,0.09098471]
[1693504958136,0.99776162,26372.0,26371.0,0.09098471]
[1693504958338,1.40110459,26372.0,26371.0,0.09098471]
[1693504958544,2.28310073,26372.0,26371.0,0.09098471]
[1693504966040,1.71431573,26372.0,26371.0,0.09098471]
[1693504968445,1.14553073,26372.0,26371.0,0.09098471]
[1693504972553,1.71431573,26372.0,26371.0,0.09098471]
[1693504975715,1.80522677,26372.0,26371.0,0.09098471]
[1693504977071,2.37401177,26372.0,26371.0,0.09098471]
[1693504977216,2.51037834,26372.0,26371.0,0.09098471]
[1693504977790,2.38419155,26372.0,26371.0,0.09098471]
[1693504978406,2.75198059,26372.0,26371.0,0.09098471]
[1693504978608,2.93387381,26372.0,26371.0,0.09098471]
[1693504978808,2.58461449,26372.0,26371.0,0.09098471]
[1693504979012,2.81720496,26372.0,26371.0,0.09098471]
[1693504979437,3.09009639,26372.0,26371.0,0.074]
[1693504979766,3.09009639,26372.0,26371.0,0.037]
[1693504979980,3.45788543,26372.0,26371.0,0.037]
[1693504980173,3.45788543,26372.0,26371.0,0.05]
[1693504980373,3.45788543,26372.0,26371.0,0.037]
[1693504980672,3.45803346,26372.0,26371.0,0.037]
[1693504980862,3.45803346,26372.0,26371.0,0.013]
[1693504981064,3.45803346,26372.0,26371.0,0.041]
[1693504981622,3.45803346,26372.0,26371.0,0.013]
[1693504982051,3.09024442,26372.0,26371.0,0.013]
[1693504982254,3.11302104,26372.0,26371.0,0.013]
[1693504982476,3.0932189,26372.0,26371.0,0.013]
[1693504982684,0.04,26370.0,26366.0,0.56990668]
[1693504982886,0.09100426,26367.0,26366.0,0.56990668]
[1693504983359,0.23877337,26367.0,26366.0,1.137827]
[1693504983571,0.23877337,26367.0,26366.0,1.706741]
[1693504983989,0.14776911,26367.0,26366.0,1.706741]
[1693504984196,0.14776911,26367.0,26366.0,1.758741]
[1693504984611,0.14776911,26367.0,26366.0,1.743741]
[1693504984818,0.14776911,26367.0,26366.0,1.780741]
[1693504985395,0.14776911,26367.0,26366.0,1.961641]
[1693504985626,0.14776911,26367.0,26366.0,1.974481]
[1693504985848,0.14776911,26368.0,26366.0,1.975441]
[1693504986010,0.14776911,26367.0,26366.0,1.860781]
[1693504986219,0.14776911,26368.0,26366.0,1.975081]
[1693504986440,0.14776911,26368.0,26367.0,0.13204528]
[1693504986667,0.14776911,26368.0,26367.0,1.83872128]
[1693504987025,0.23877337,26368.0,26367.0,1.72352128]
[1693504987223,0.14776911,26368.0,26367.0,1.72352128]
[1693504987775,0.23877337,26368.0,26367.0,1.72352128]
[1693504987976,0.23877337,26368.0,26367.0,1.76152128]
[1693504988783,0.23877337,26368.0,26367.0,2.24154213]
[1693504988983,0.23877337,26368.0,26367.0,2.26952213]
[1693504989227,0.23877337,26368.0,26367.0,2.27132213]
[1693504989447,0.23877337,26368.0,26367.0,2.26400213]
[1693504989654,0.23877337,26368.0,26367.0,2.25986213]
[1693504989856,0.23877337,26368.0,26367.0,2.37686213]
[1693504989969,0.23877337,26368.0,26367.0,2.38256213]
[1693504990171,0.14776911,26368.0,26367.0,2.26700213]
[1693504990376,0.14776911,26368.0,26367.0,2.26610213]
[1693504990580,0.22751066,26370.0,26367.0,2.22768213]
[1693504990830,0.23904634,26369.0,26368.0,0.38768085]
[1693504991031,0.23904634,26369.0,26368.0,2.09429385]
[1693504991751,0.37555274,26369.0,26368.0,2.15813385]
[1693504991953,0.37555274,26369.0,26368.0,2.09429385]
[1693504992479,0.37555274,26369.0,26368.0,2.16041385]
[1693504992480,0.28454848,26369.0,26368.0,2.16041385]
[1693504992652,0.33005061,26369.0,26368.0,2.13129385]
[1693504993232,0.33005061,26369.0,26368.0,2.16829385]
[1693504993933,0.33005061,26369.0,26368.0,0.074]
[1693504993934,0.66473838,26369.0,26368.0,0.074]
[1693504994136,1.12127672,26369.0,26368.0,0.074]
[1693504994363,0.55242772,26369.0,26368.0,0.074]
[1693504998697,0.53625602,26369.0,26368.0,0.074]
[1693504998902,2.66022905,26369.0,26368.0,0.074]
[1693505000151,2.38721511,26369.0,26368.0,0.074]
[1693505000358,2.26042471,26369.0,26368.0,0.074]
[1693505000566,2.24288766,26369.0,26368.0,0.074]
[1693505000777,2.79746993,26369.0,26368.0,0.074]
[1693505000988,3.21967279,26369.0,26368.0,0.074]
[1693505001209,3.21967279,26369.0,26368.0,0.08899184]
[1693505001420,3.58746183,26369.0,26368.0,0.074]
[1693505001626,3.47226183,26369.0,26368.0,0.037]
[1693505001806,3.47226183,26369.0,26368.0,0.038]
[1693505002048,3.47226183,26369.0,26368.0,0.037]
[1693505002464,3.47226183,26369.0,26368.0,0.001]
[1693505002667,3.50314169,26369.0,26368.0,0.001]
[1693505002850,3.65644169,26369.0,26368.0,0.001]
[1693505003760,3.65644169,26369.0,26368.0,0.004]
[1693505004187,3.65644169,26369.0,26368.0,0.001]
[1693505004391,3.65644169,26369.0,26368.0,0.004]
[1693505004392,3.34943883,26369.0,26368.0,0.004]
[1693505005635,3.6565992,26369.0,26368.0,0.004]
[1693505006479,3.28881016,26369.0,26368.0,0.004]
[1693505006887,3.68721016,26369.0,26368.0,0.004]
[1693505008494,3.38004979,26369.0,26368.0,0.004]
[1693505010509,3.53323605,26369.0,26368.0,0.004]
[1693505012993,3.59117677,26369.0,26368.0,0.004]
[1693505013689,3.95896581,26369.0,26368.0,0.004]
[1693505017342,4.26612618,26369.0,26368.0,0.004]
[1693505018170,4.26612618,26369.0,26368.0,0.003]
[1693505018461,4.33326618,26369.0,26368.0,0.006]
[1693505018809,4.26912618,26369.0,26368.0,0.006]
[1693505019222,4.26912618,26369.0,26368.0,0.003]
[1693505019437,4.27212618,26369.0,26368.0,0.006]
[1693505019858,4.33308618,26369.0,26368.0,0.003]
[1693505020085,4.26912618,26369.0,26368.0,0.003]
[1693505020324,4.27212618,26369.0,26368.0,0.006]
[1693505021583,3.96496581,26369.0,26368.0,0.006]
[1693505026401,4.23759789,26369.0,26368.0,0.006]
[1693505027111,4.12239789,26369.0,26368.0,0.006]
[1693505028712,3.60130885,26369.0,26368.0,0.006]
[1693505028982,3.56332259,26369.0,26368.0,0.006]
[1693505031003,2.58352098,26369.0,26368.0,0.006]
[1693505031204,1.44582298,26369.0,26368.0,0.006]
[1693505031322,1.61504781,26369.0,26368.0,0.006]
[1693505031523,1.95673126,26369.0,26368.0,0.006]
[1693505031724,1.95673126,26369.0,26368.0,0.02109783]
[1693505031921,1.95373126,26369.0,26368.0,0.01809783]
[1693505032169,1.95673126,26369.0,26368.0,0.01809783]
[1693505032415,2.57953898,26369.0,26368.0,0.01809783]
[1693505032627,2.26550079,26369.0,26368.0,0.01809783]
[1693505032834,0.36367108,26369.0,26368.0,1.15583983]
[1693505033040,0.36367108,26369.0,26368.0,0.574871]
[1693505033041,0.27579136,26369.0,26368.0,0.574871]
[1693505033238,0.27579136,26369.0,26368.0,0.58996311]
[1693505033449,0.31805757,26370.0,26368.0,1.15883411]
[1693505033659,0.28718791,26371.0,26368.0,1.72770511]
[1693505033840,0.13284358,26370.0,26368.0,1.72770511]
[1693505033991,0.13284358,26370.0,26368.0,1.15883411]
[1693505034205,0.13284358,26370.0,26368.0,0.58996311]
[1693505034407,0.13284358,26370.0,26368.0,0.58696311]
[1693505034606,0.13284358,26370.0,26368.0,0.58396311]
[1693505034829,0.13284358,26370.0,26368.0,0.58696311]
[1693505035231,0.13284358,26370.0,26368.0,0.58396311]
[1693505035562,0.13384358,26370.0,26368.0,0.58596311]
[1693505035763,0.13284358,26369.0,26368.0,0.58596311]
[1693505036873,0.13284358,26369.0,26368.0,0.01709211]
[1693505037498,0.13284358,26369.0,26368.0,0.01609211]
[1693505037706,0.13284358,26370.0,26368.0,0.01509211]
[1693505037918,0.001,26369.0,26368.0,0.01509211]
[1693505038121,1.08169042,26369.0,26368.0,0.01509211]
[1693505038339,1.08069042,26369.0,26368.0,0.01509211]
[1693505038564,1.08069042,26369.0,26368.0,0.003]
[1693505039618,1.08069042,26369.0,26368.0,0.005]
[1693505040089,2.89376325,26369.0,26368.0,0.005]
[1693505040522,2.90945934,26369.0,26368.0,0.005]
[1693505040727,2.68227143,26369.0,26368.0,0.005]
[1693505041341,0.04,26367.0,26364.0,0.1956875]
[1693505041565,0.1152,26365.0,26364.0,0.1956875]
[1693505041771,1.75359643,26365.0,26360.0,0.2398]
[1693505041976,0.1152,26362.0,26360.0,0.08]
[1693505042393,0.1152,26363.0,26360.0,0.08]
[1693505043004,0.1152,26363.0,26359.0,1.42220789]
[1693505043213,0.1152,26363.0,26359.0,0.85315189]
[1693505043214,0.1152,26362.0,26359.0,0.85315189]
[1693505043592,0.1152,26362.0,26359.0,0.65005189]
[1693505043728,0.1152,26362.0,26360.0,0.037]
[1693505044188,0.1152,26363.0,26360.0,0.037]
[1693505044394,0.1152,26363.0,26360.0,0.606043]
[1693505045010,0.1152,26363.0,26360.0,0.569043]
[1693505045407,0.1152,26363.0,26360.0,0.606043]
[1693505046084,0.1152,26363.0,26360.0,1.175087]
[1693505046281,0.151938,26365.0,26362.0,0.2152]
[1693505046515,0.151938,26365.0,26363.0,1.137958]
[1693505046721,0.151938,26365.0,26363.0,1.706937]
[1693505047134,0.29711169,26368.0,26364.0,0.54172085]
[1693505047135,0.22740592,26368.0,26364.0,0.54172085]
[1693505047349,1.2247825,26370.0,26367.0,0.1152]
[1693505047350,1.08835677,26370.0,26367.0,0.1152]
[1693505047556,0.13291152,26369.0,26368.0,1.40001434]
[1693505047787,0.09095677,26370.0,26368.0,1.706613]
[1693505047987,0.1211843,26371.0,26368.0,1.706613]
[1693505048192,0.13268596,26370.0,26368.0,1.85368534]
[1693505048396,0.28456896,26370.0,26368.0,1.706613]
[1693505048601,0.151883,26370.0,26368.0,1.706613]
[1693505049020,0.151883,26370.0,26368.0,1.708613]
[1693505049334,0.151883,26370.0,26368.0,1.706613]
[1693505049536,0.151883,26370.0,26368.0,1.720613]
[1693505050100,0.151883,26370.0,26368.0,1.723613]
[1693505050644,0.151883,26370.0,26368.0,1.720613]
[1693505051000,0.151883,26370.0,26368.0,1.736613]
[1693505052878,0.151883,26370.0,26368.0,1.167742]
[1693505053121,0.151883,26370.0,26368.0,0.598871]
[1693505054134,0.151883,26370.0,26368.0,1.167742]
[1693505054726,0.151883,26370.0,26368.0,0.03]
[1693505055876,0.267083,26370.0,26368.0,0.03]
[1693505056574,0.835917,26370.0,26368.0,0.03]
[1693505057114,0.267083,26370.0,26368.0,0.03]
[1693505059014,0.151883,26370.0,26368.0,1.929145]
[1693505059231,0.151883,26370.0,26368.0,1.922905]
[1693505059403,0.151883,26370.0,26368.0,1.924345]
[1693505059612,0.151883,26370.0,26368.0,1.923685]
[1693505059819,0.151883,26370.0,26368.0,1.920385]
[1693505060007,0.151883,26370.0,26369.0,0.36768085]
[1693505060210,0.0202,26372.0,26370.0,1.706484]
[1693505060592,0.13261635,26371.0,26370.0,1.706484]
[1693505060793,0.13261635,26371.0,26370.0,1.726484]
[1693505061167,0.13261635,26371.0,26370.0,1.74143038]
[1693505061371,0.28448635,26371.0,26370.0,1.74143038]
[1693505061582,0.28448635,26371.0,26370.0,1.17260238]
[1693505061804,0.28448635,26371.0,26370.0,0.60377438]
[1693505062003,0.28448635,26371.0,26370.0,0.58577438]
[1693505063564,0.28448635,26371.0,26370.0,0.58877438]
[1693505064583,0.28448635,26371.0,26370.0,0.01994638]
[1693505065646,0.96849235,26371.0,26370.0,0.01994638]
[1693505066456,0.39968635,26371.0,26370.0,0.01994638]
[1693505067325,0.28448635,26371.0,26370.0,0.58877438]
[1693505067713,0.28448635,26371.0,26370.0,1.15760238]
[1693505068442,0.28448635,26371.0,26370.0,1.72643038]
[1693505069721,0.28448635,26371.0,26370.0,1.15760238]
[1693505070506,0.28448635,26371.0,26370.0,2.09411123]
[1693505070718,0.0202,26372.0,26370.0,2.19325123]
[1693505070921,0.0202,26372.0,26371.0,1.726418]
[1693505071097,0.0202,26372.0,26371.0,2.09409885]
[1693505071296,0.0202,26372.0,26371.0,2.36957885]
[1693505071521,0.0202,26372.0,26371.0,2.37431885]
[1693505071756,0.0202,26372.0,26371.0,2.37755885]
[1693505071982,0.0202,26372.0,26371.0,2.37515885]
[1693505072181,0.0202,26372.0,26371.0,2.42569885]
[1693505072350,0.0202,26372.0,26371.0,2.42491885]
[1693505072559,0.0202,26372.0,26371.0,2.42809885]
[1693505072766,0.11100433,26379.0,26378.0,0.08]
[1693505072966,0.15233225,26379.0,26378.0,3.06457319]
[1693505073169,0.15233225,26379.0,26378.0,3.06504305]
[1693505073344,0.15233225,26379.0,26378.0,3.14532305]
[1693505073542,0.0202,26379.0,26378.0,3.02741071]
[1693505073764,0.0202,26379.0,26378.0,3.01583071]
[1693505074108,0.0202,26379.0,26378.0,2.84935224]
[1693505074362,0.0202,26379.0,26378.0,3.46574458]
[1693505074571,0.0202,26379.0,26378.0,3.60443224]
[1693505074786,0.0202,26379.0,26378.0,3.60935224]
[1693505074998,0.0202,26379.0,26378.0,4.00615224]
[1693505075209,0.0202,26379.0,26378.0,3.97527224]
[1693505075488,0.0202,26379.0,26378.0,4.01467224]
[1693505075704,0.0202,26379.0,26378.0,3.97651224]
[1693505075910,0.0202,26379.0,26378.0,3.80293224]
[1693505076113,0.0202,26379.0,26378.0,3.43253224]
[1693505076328,0.0202,26379.0,26378.0,3.44286559]
[1693505076535,0.0202,26379.0,26378.0,3.44688559]
[1693505076749,0.0202,26379.0,26378.0,3.44832559]
[1693505076957,0.0202,26379.0,26378.0,3.45864559]
[1693505077163,0.0202,26379.0,26378.0,3.45582559]
[1693505077368,0.0202,26379.0,26378.0,3.45624559]
[1693505077574,0.0202,26379.0,26378.0,3.45594559]
[1693505077784,0.0202,26379.0,26378.0,3.45630559]
[1693505078004,0.0202,26379.0,26378.0,3.46830559]
[1693505078214,0.0202,26379.0,26378.0,3.47106559]
[1693505078411,0.0202,26379.0,26378.0,3.60276559]
[1693505078616,0.0202,26379.0,26378.0,3.60960559]
[1693505078823,0.0202,26379.0,26378.0,3.61008559]
[1693505079024,0.0202,26379.0,26378.0,4.00920559]
[1693505079233,0.0202,26381.0,26380.0,0.18]
[1693505079438,0.0202,26381.0,26380.0,2.95732885]
[1693505079642,0.0202,26381.0,26380.0,3.27016885]
[1693505079849,0.0202,26381.0,26380.0,3.25660885]
[1693505080054,0.0202,26381.0,26380.0,3.24748885]
[1693505080257,0.0202,26381.0,26380.0,3.23435435]
[1693505080463,0.0202,26381.0,26380.0,3.22127435]
[1693505080670,0.0202,26381.0,26380.0,3.07307435]
[1693505080875,0.0202,26381.0,26380.0,3.05153435]
[1693505081078,0.0202,26381.0,26380.0,3.04817435]
[1693505081290,0.0202,26381.0,26380.0,3.63616669]
[1693505081494,0.0202,26383.0,26382.0,0.5784]
[1693505081706,0.0202,26383.0,26382.0,3.35555685]
[1693505082209,0.0202,26383.0,26382.0,3.63827685]
[1693505082410,0.0202,26383.0,26382.0,3.64331685]
[1693505082620,0.0202,26383.0,26382.0,3.64223685]
[1693505082820,0.0202,26383.0,26382.0,3.67899685]
[1693505083058,0.0202,26383.0,26382.0,3.67995685]
[1693505083275,0.0202,26383.0,26382.0,3.66255685]
[1693505083479,0.0202,26383.0,26382.0,3.49869685]
[1693505083679,0.0202,26383.0,26382.0,3.53563685]
[1693505083885,0.0202,26383.0,26382.0,3.50385685]
[1693505084088,0.0202,26383.0,26382.0,3.72639685]
[1693505084295,0.0202,26383.0,26382.0,3.77541758]
[1693505084510,0.0202,26383.0,26382.0,3.78649758]
[1693505084716,0.0202,26383.0,26382.0,3.77845758]
[1693505084951,0.0202,26383.0,26382.0,3.69317758]